Cogmind - Beta 14 @@@ ROGUE MODE // 2024.09.07 @ 13:50:21 Player: Dull Result: Destroyed by Y-45 Defender with Heavy Assault Rifle Performance ------------- Evolutions (2) 1000 Regions Visited (4) 800 Robots Destroyed (22) 110 Value Destroyed (681) 681 Prototype IDs (0) 0 Alien Tech Used (0) 0 Bonus (0) 0 TOTAL SCORE: 2591 Bonus ------- None Cogmind --------- Core Integrity 0/550 Matter 402/450 Energy 100/100 System Corruption 2% Temperature Cool (9) Movement Core (900) Ox17 Location -8/Materials Parts ------- > --- POWER (1) -------- (None) > --- PROPULSION (5) --- (None) > --- UTILITY (3) ------ High-capacity Storage Unit Large Matter Pod Advanced Visual Processing Unit > --- WEAPON (2) ------- EM Pulse Cannon Heavy Assault Rifle > --- INVENTORY (20) --- Aluminum Leg Aluminum Leg Aluminum Leg Improved Heat Sink Advanced Visual Processing Unit Light Armor Plating Light Armor Plating Light Armor Plating Light Armor Plating Light Armor Plating Heavy Assault Rifle Light Cannon Rocket Launcher Peak State ------------ > --- POWER ------------ Ion Engine > --- PROPULSION ------- Aluminum Leg Aluminum Leg Aluminum Leg Aluminum Leg Aluminum Leg > --- UTILITY ---------- High-capacity Storage Unit Large Matter Pod Advanced Visual Processing Unit > --- WEAPON ----------- Light Assault Rifle Light Assault Rifle > --- INVENTORY -------- Ion Engine Light Ion Engine Aluminum Leg Aluminum Leg Improved Heat Sink Advanced Visual Processing Unit Light Armor Plating Light Armor Plating Light Armor Plating Light Armor Plating EM Pulse Cannon Light Assault Rifle Light Assault Rifle Heavy Assault Rifle Rocket Launcher [Rating: 15] Favorites ----------- Power Ion Engine Engine Ion Engine Propulsion Aluminum Leg Leg Aluminum Leg Utility Large Matter Pod Storage Large Matter Pod Processor Advanced Visual Processing Unit Weapon Light Assault Rifle Energy Cannon EM Pulse Cannon Ballistic Gun Light Assault Rifle Build | -11 -10 -10 -9 -8 ------- Run | Yrd Mat Min Mat Mat Slots Evolved 4 | . . . 2 2 Power . | . . . . . Propulsion 3 | . . . 2 1 Utility 1 | . . . . 1 Weapon . | . . . . . Parts Attached 23 | 6 1 3 5 8 Power 6 | 1 . 2 1 2 Engine 6 | 1 . 2 1 2 Core . | . . . . . Reactor . | . . . . . Propulsion 6 | 2 . . 3 1 Treads . | . . . . . Leg 6 | 2 . . 3 1 Wheel . | . . . . . Hover . | . . . . . Flight . | . . . . . Utility 4 | 1 1 1 . 1 Device . | . . . . . Storage 3 | 1 1 1 . . Processor 1 | . . . . 1 Hackware . | . . . . . Protection . | . . . . . Artifact . | . . . . . Weapon 7 | 2 . . 1 4 Energy Gun . | . . . . . Energy Cannon 1 | . . . . 1 Ballistic Gun 6 | 2 . . 1 3 Ballistic Cannon . | . . . . . Launcher . | . . . . . Special Weapon . | . . . . . Impact Weapon . | . . . . . Slashing Weapon . | . . . . . Piercing Weapon . | . . . . . Special Melee Weapon . | . . . . . Unidentified Prototypes . | . . . . . Parts Lost 16 | . . 2 2 12 Power 5 | . . 1 1 3 Propulsion 6 | . . . 1 5 Utility . | . . . . . Weapon 5 | . . 1 . 4 Highest Loss Streak 5 | . . 1 1 5 To Critical Strikes . | . . . . . Average Slot Usage (%) 93 | . 98 98 99 67 Engine 10 | . 14 13 10 1 Leg 33 | . 28 28 43 21 Storage 23 | . 26 28 22 18 Processor 1 | . . . . 9 Ballistic Gun 23 | . 28 26 21 16 Peak Build Rating 15 | 6 7 8 11 15 Average Rating 9 | 2 6 7 10 11 On Entrance 6 | . 6 7 7 11 Naked Turns . | . . . . . Heaviest Build 55 | 10 13 50 50 55 Greatest Support 50 | 20 20 20 40 50 Greatest Overweight (x) 18 | 1 . 2 1 18 Average Overweight (x) . | . . . 1 1 Largest Inventory Capacity 20 | 8 8 20 20 20 Average Capacity 15 | 6 8 9 20 20 Most Carried 17 | 6 8 12 17 17 Average Carried 11 | 3 4 8 14 15 Final Capacity 20 | 8 8 20 20 20 Final Carried 17 | 2 8 12 17 13 Class Distribution -------------------- 54% | Mutant 45% | Scavenger-Mutant Dominant Class ---------------- Mutant | -10/Materials Mutant | -10/Mines Scavenger-Mutant | -9/Materials Mutant | -8/Materials Resources | -11 -10 -10 -9 -8 ----------- Run | Yrd Mat Min Mat Mat Matter Collected 662 | 260 16 229 111 46 Remotely . | . . . . . Salvage Created 897 | . 16 259 333 289 Parts 58 | . 2 16 24 16 Haulers Intercepted 1 | . . . 1 . Recyclers Shooed 1 | . . . 1 . Parts Field Recycled . | . . . . . Retrieved Matter . | . . . . . Parts Self-Destructed . | . . . . . Prevented . | . . . . . Kills | -11 -10 -10 -9 -8 ------- Run | Yrd Mat Min Mat Mat Combat Hostiles Destroyed 20 | . . 7 8 5 Guns 19 | . . 7 7 5 AOE 1 | . . . 1 . Classes Destroyed 5 | . 1 2 2 . Hauler 1 | . . . 1 . Watcher 1 | . 1 . . . Swarmer 6 | . . 3 3 . Grunt 9 | . . 4 3 2 Sentry 5 | . . . 2 3 Best Kill Streak 3 | . 1 3 3 1 Combat Bots Only 3 | . . 3 3 1 Max Kills in Single Turn 1 | . 1 1 1 1 Gunslinging . | . . . . . Exploded 1 | . . . 1 . Melee . | . . . . . Uniques/NPCs Destroyed . | . . . . . Combat | -11 -10 -10 -9 -8 -------- Run | Yrd Mat Min Mat Mat Hostile Shots Fired 222 | . . 47 50 125 Missed 66 | . . 16 16 34 Damage Taken 2158 | . . 390 415 1353 Core 692 | . . 75 57 560 Absorbed by Shields . | . . . . . Core Remaining (%) 85 | 100 . 70 85 . Volleys Fired 108 | . 4 34 35 35 Largest 2 | . 2 2 2 2 Hottest 86 | . 40 40 40 86 Shots Fired 204 | . 8 62 70 64 Gun 203 | . 8 62 70 63 Cannon 1 | . . . . 1 Launcher . | . . . . . Special . | . . . . . Kinetic 203 | . 8 62 70 63 Thermal . | . . . . . Explosive . | . . . . . Electromagnetic 1 | . . . . 1 Robot Hit Streak 26 | . 2 8 7 26 Robot Miss Streak 4 | . 4 4 3 2 Penetration Max . | . . . . . Secondary Targets . | . . . . . Shots Hit Robots 139 | . 3 38 46 52 Core Hits 57 | . 2 17 21 17 Critical Kills . | . . . . . Critical Parts Destroyed . | . . . . . Critical Strikes . | . . . . . Melee Attacks . | . . . . . Impact . | . . . . . Slashing . | . . . . . Piercing . | . . . . . Sneak Attacks . | . . . . . Combat Hostiles . | . . . . . Follow-up Attacks . | . . . . . Damage Inflicted 1198 | . 18 325 422 433 Guns 1152 | . 18 319 383 432 Cannons . | . . . . . Explosions 28 | . . . 28 . Melee . | . . . . . Ramming 18 | . . 6 11 1 Kinetic 1152 | . 18 319 383 432 Thermal . | . . . . . Explosive . | . . . . . Electromagnetic 28 | . . . 28 . Impact . | . . . . . Slashing . | . . . . . Piercing . | . . . . . Highest Corruption 2 | . . . . 2 Average Corruption 1 | . . . . 1 Corruption Purged . | . . . . . Corruption Blocked . | . . . . . Overload Shots . | . . . . . Overflow Damage . | . . . . . Projectiles . | . . . . . Explosions . | . . . . . Melee . | . . . . . Knockbacks . | . . . . . Impact . | . . . . . Kinetic . | . . . . . Secondary . | . . . . . Self-Inflicted Damage 34 | . . . 34 . Shots 1 | . . . 1 . Rammed . | . . . . . Targets Rammed 4 | . . 1 2 1 Kicked 4 | . . 1 2 1 Crushed . | . . . . . Highest Temperature 34 | . . 34 6 24 Average Temperature 9 | . . 10 3 11 Received Heat Transfer 945 | . . 189 135 621 Siege Activations . | . . . . . Robots Corrupted . | . . . . . Combat Hostiles . | . . . . . Parts Fried . | . . . . . Impact Corruptions . | . . . . . Robots Melted . | . . . . . Combat Hostiles . | . . . . . Parts Melted . | . . . . . Heat Transferred . | . . . . . Parts Sabotaged . | . . . . . Parts Stolen . | . . . . . Parts Stripped . | . . . . . Power Chain Reactions . | . . . . . Alert | -11 -10 -10 -9 -8 ------- Run | Yrd Mat Min Mat Mat Peak Influence 180 | . 7 135 180 136 Initial 66 | . . 2 52 66 Average 57 | . 4 22 92 86 Maximum Alert Level . | . . . . . Low Security (%) 100 | 100 100 100 100 100 Level 1 . | . . . . . Level 2 . | . . . . . Level 3 . | . . . . . Level 4 . | . . . . . Level 5 . | . . . . . High Security . | . . . . . Max Security . | . . . . . Squads Dispatched 2 | . . . 1 1 Investigation . | . . . . . Extermination . | . . . . . Reinforcement 2 | . . . 1 1 Assault . | . . . . . Garrison . | . . . . . Intercept . | . . . . . Searches Triggered . | . . . . . Construction Impeded . | . . . . . Haulers Reinforced . | . . . . . Active Scanning Responses . | . . . . . Cargo Convoy Interrupts . | . . . . . Stealth | -11 -10 -10 -9 -8 --------- Run | Yrd Mat Min Mat Mat Distress Signals 4 | . . . 3 1 Communications Jammed . | . . . . . Distress Signals . | . . . . . Times Spotted 32 | . 2 7 14 9 Peak Tracking Total 5 | . 2 3 5 4 Tactical Retreats . | . . . . . Traps | -11 -10 -10 -9 -8 ------- Run | Yrd Mat Min Mat Mat Traps Triggered 2 | . . . . 2 Indirectly . | . . . . . Trap Hack Attempts . | . . . . . Triggered . | . . . . . Disarmed . | . . . . . Reprogrammed . | . . . . . Reused . | . . . . . Traps Extracted . | . . . . . Installed . | . . . . . Triggered . | . . . . . Machines | -11 -10 -10 -9 -8 ---------- Run | Yrd Mat Min Mat Mat Machines Disabled 2 | . . . 2 . Max in Single Turn 2 | . . . 2 . Machines Repaired . | . . . . . Machines Dismantled . | . . . . . Machines Sabotaged . | . . . . . Overloaded Fab Kills . | . . . . . Hacking | -11 -10 -10 -9 -8 --------- Run | Yrd Mat Min Mat Mat Machines Accessed 1 | . . . 1 . Terminals 1 | . . . 1 . Fabricators . | . . . . . Repair Stations . | . . . . . Recycling Units . | . . . . . Scanalyzers . | . . . . . Garrison Access . | . . . . . Total Hacks 1 | . . . 1 . Successful 1 | . . . 1 . Failed . | . . . . . Catastrophic . | . . . . . Database Lockouts . | . . . . . Manual . | . . . . . Terminals 1 | . . . 1 . Fabricators . | . . . . . Repair Stations . | . . . . . Recycling Units . | . . . . . Scanalyzers . | . . . . . Garrison Access . | . . . . . Terminal Hacks 1 | . . . 1 . Repair Station Index 1 | . . . 1 . Fabricator Hacks . | . . . . . Repair Station Hacks . | . . . . . Recycling Unit Hacks . | . . . . . Scanalyzer . | . . . . . Garrison Access Hacks . | . . . . . Unauthorized Hacks . | . . . . . Terminals . | . . . . . Fabricators . | . . . . . Repair Stations . | . . . . . Recycling Units . | . . . . . Scanalyzers . | . . . . . Garrison Access . | . . . . . Data Cores Recovered . | . . . . . Used . | . . . . . Hacking Detections . | . . . . . Full Trace Events . | . . . . . Feedback Events . | . . . . . Feedback Blocked . | . . . . . Robot Schematics Acquired . | . . . . . Robots Built . | . . . . . Authchips . | . . . . . Time . | . . . . . Total Robot Build Rating . | . . . . . Part Schematics Acquired . | . . . . . Parts Built . | . . . . . Authchips . | . . . . . Time . | . . . . . Total Part Build Rating . | . . . . . Parts Repaired . | . . . . . Time . | . . . . . Parts Recycled . | . . . . . Recycled Matter . | . . . . . Retrieved Matter . | . . . . . Retrieved Components . | . . . . . Parts Scanalyzed . | . . . . . Part Schematics Acquired . | . . . . . Parts Damaged . | . . . . . Bothacking | -11 -10 -10 -9 -8 ------------ Run | Yrd Mat Min Mat Mat Used RIF Installer . | . . . . . Robots Hacked . | . . . . . Non-combat . | . . . . . Combat . | . . . . . Robot Hacks Applied . | . . . . . Relay Couplers Released . | . . . . . Fabnet Peak Effective % . | . . . . . Robots Rewired . | . . . . . Allies Hacked . | . . . . . Hacks Repelled . | . . . . . Allies | -11 -10 -10 -9 -8 -------- Run | Yrd Mat Min Mat Mat Total Allies . | . . . . . Largest Group . | . . . . . Highest-Rated Group . | . . . . . Highest-Rated Ally . | . . . . . Total Orders . | . . . . . Ally Attacks . | . . . . . Total Damage . | . . . . . Kills . | . . . . . Allies Corrupted . | . . . . . Allies Melted . | . . . . . Intel | -11 -10 -10 -9 -8 ------- Run | Yrd Mat Min Mat Mat Robot Analysis Total . | . . . . . Derelict Logs Recovered 3 | . . 3 . . Drone Launches . | . . . . . Drone Recoveries . | . . . . . Exploration | -11 -10 -10 -9 -8 ------------- Run | Yrd Mat Min Mat Mat Turns Passed 1885 | 44 147 667 728 299 Spaces Moved 984 | 37 108 436 321 82 Core 26 | 23 . . . 3 Treads . | . . . . . Legs 958 | 14 108 436 321 79 Wheels . | . . . . . Hover . | . . . . . Flight . | . . . . . Fastest Speed 50 | 50 120 120 190 120 Average Speed 154 | 85 120 127 190 234 Slowest Speed 950 | 120 120 260 190 950 Overloaded Moves . | . . . . . Propulsion Burnouts . | . . . . . Robots Hopped . | . . . . . Cave-ins Triggered . | . . . . . Exploration Rate (%) 32 | 4 22 94 29 15 Regions Visited 4 Branch Regions 1 Pre-discovered Areas 1 | . . 1 . . Known Exits Taken . | . . . . . Unknown Exits Taken 4 | 1 1 1 1 . Scrap Searched 1 | . . 1 . . Spaces Dug . | . . . . . Terrain Destroyed . | . . . . . Melee . | . . . . . Projectile . | . . . . . AOE . | . . . . . Terrain Rammed . | . . . . . Walls Destroyed . | . . . . . Machines Disabled . | . . . . . Actions | -11 -10 -10 -9 -8 --------- Run | Yrd Mat Min Mat Mat Total 1187 | 48 119 501 382 137 Wait 31 | . . 14 10 7 Move 980 | 36 107 435 320 82 Hop . | . . . . . Pick Up 36 | 6 7 9 10 4 Fast Attach 3 | 2 . 1 . . Attach 18 | 4 1 . 5 8 Detach . | . . . . . Swap 2 | . . 2 . . Drop 5 | . . 5 . . Fire 108 | . 4 34 35 35 Melee . | . . . . . Ram . | . . . . . Kick 4 | . . 1 2 1 Crush . | . . . . . Escape Stasis . | . . . . . Rewire . | . . . . . Trap . | . . . . . Miscellaneous . | . . . . . Route ------- -11/Scrapyard -10/Materials -10/Mines (discovered 2 exits: *Mat x2) -9/Materials -8/Materials History --------- Turn | Location | Event 2 | -11/Scrapyard | Met Revision 17 4 | -11/Scrapyard | Discovered new exit (range 15) 45 | -11/Scrapyard | Entered Materials 111 | -10/Materials | Discovered new exit (range 14) 192 | -10/Materials | Entered Mines 297 | -10/Mines | Learned Materials trap positions 316 | -10/Mines | Build established: Mutant 334 | -10/Mines | Discovered new exit (range 15) 363 | -10/Mines | Learned Materials stockpile data 392 | -10/Mines | Learned location of Zion (-6) 634 | -10/Mines | Received a Rocket Launcher from a helpful Derelict 771 | -10/Mines | Discovered new exit (range 11) 859 | -10/Mines | Entered Materials 859 | -9/Materials | Evolved 2 slots: Propulsion x2 860 | -9/Materials | Loaded intel: 20 trap records 1157 | -9/Materials | Build established: Scavenger-Mutant 1433 | -9/Materials | Discovered new exit (range 5) 1587 | -9/Materials | Entered another Materials area 1587 | -8/Materials | Evolved 2 slots: Propulsion x1, Utility x1 1674 | -8/Materials | Lost 5 parts (1p2n2w) 1857 | -8/Materials | Core integrity fell below 50% 1866 | -8/Materials | Core integrity fell below 20% 1886 | -8/Materials | Destroyed by Y-45 Defender with Heavy Assault Rifle Last Messages --------------- 01852_ Aluminum Leg destroyed. 01852_ K-01 Serf collects debris. 01853_ R-06 Scavenger inserts Lgt. Nuclear Core into recycling unit. 01853_ Lgt. Assault Rifle destroyed. 01857_ K-01 Serf collects debris. 01858_ U-05 Engineer lays Concrete. 01858_ Ion Engine destroyed. 01862_ R-06 Scavenger collects Com. Wheel. 01862_ Critical hit (Burn: +37). 01865_ R-06 Scavenger collects Tractor Beam. 01869_ R-06 Scavenger collects Imp. Heat Sink. 01872_ R-06 Scavenger collects Lgt. Ion Engine. 01877_ Y-45 Defender destroyed. 01879_ R-06 Scavenger inserts Com. Wheel into recycling unit. 01880_ K-01 Serf collects debris. 01880_ Lgt. Ion Engine destroyed. 01882_ R-06 Scavenger inserts Tractor Beam into recycling unit. 01883_ Recycling unit begins recycling process. 01884_ K-01 Serf collects debris. 01885_ R-06 Scavenger inserts Imp. Heat Sink into recycling unit. Map ----- +----------------------------------------------------+ | ???????????????????????????????????? | | ???????????????????????????????????? | | ???????????????????????????????????? | | ????????????????????????? ?????????? | | ???????????????????????? ?????????? | | ???????????????????????? ?????????? | | ???????????????????????? ?????????? | | ???????????????????????? ?????????? | | ???????????????????????? ?????????? | | ???????????????????????? ?????????? | | ????????????????????????# ?????????? | | ????????????????????????# ?????????? | | ????????????????????????# #????????? | | ??????###+#####?????????# #????????? | | ??????# [?????????#Y#????????? | | ??????? ?????????# #????????? | | ????????[[ """?????????# #????????? | | ?????????[ """?????????# #????????? | | ?????????? """?????????# #####????? | | ??????????? ?????????# ]]#????? | | ??????????###+###???????# ]]#????? | | ??????????# ######### !!#????? | | ??????????# ^^ %% !!#????? | | ??????????# % Y !!#????? | | ??????????# *k! !!#????? | | ??????????# #########@#####????? | | ??????????## ##?????? %= ???????? | | ???????????# #?????[[[ r ?????? | | ???????????# #????#[[[ "Y" #????? | | ?###???????# #????#[[ """ #????? | | ?? ??????# #????###########????? | | ??? ?????# #???????????????????? | | ????? ???## ##??????????????????? | | ####### ### #######????????????? | | [ # #????????????? | | #????????????? | | # #????????????? | | ########### #######????????????? | | ??########## ##??????????????????? | | ??# # #???????????????????? | | ??# """ [# #???????????????????? | | ??# """"" +%% #???????????????????? | | ??# """" #! #???????????????????? | | ??# """"" # #???????????????????? | | ??# """ # ###########?????????? | | ??# # !##????????? | | ??# "T" # !#????????? | | ??# """ # !#????????? | | ??####+############ !#????????? | | ?????# #??????????# !#????????? | +----------------------------------------------------+ Best States ------------- Heat Dissipation 31 Energy Generation 10 Energy Capacity 250 Matter Stores 450 Matter Capacity 450 Sight Range 20 Terrain Scan Density 10 Evasion (%) 55 Item Schematics ----------------- None Robot Schematics ------------------ None Fabricated ------------ Nothing Alien Tech Used ----------------- None Achievements -------------- None Challenges ------------ None Game ------ Seed CoordinationPulseGreatsword Manual? 0 Play Time 00:14:34 Cumulative 12.5 hours Start 2024.09.07 @ 13:38:21 End 2024.09.07 @ 13:50:21 Sessions 1 Manual Loads 0 Difficulty Rogue Special Mode None Game No. 22 Rogue 22 Adventurer 0 Explorer 0 Win Type - Total 0 Types 0/0/0/0/0/0/0/0/0 Lore% 5 Gallery% 18 Achievement% 17 Wizard Run 0 Options --------- Layout 0 ASCII 0 Keyboard 0 Movement Mouse Keybinds 0 Fullscreen 1 Font 18/TerminusBold Map View 76x50 Zoom Use 0% Tactical HUD 1 Map Filters NONE Filters NONE Steam 1 RUN: a1ec5d5a-ff02-498c-b1eb-298d2728c620